bitfinex-derivatives/quotes_ETHF0:USTF0_20251103
["timestamp","ask_amount","ask_price","bid_price","bid_amount"]
[1762150349478,11.84705896,3720.6,3720.5,0.1367]
[1762150349688,2.01105896,3721.2,3720.5,0.1367]
[1762150349876,6.153,3721.1,3720.5,0.1367]
[1762150350075,9.843,3721.0,3720.5,0.1367]
[1762150350683,9.843,3721.0,3720.7,0.01561346]
[1762150351282,9.843,3721.0,3720.8,0.02623562]
[1762150351478,2.01105896,3720.9,3720.8,0.02623562]
[1762150351680,2.01105896,3720.9,3719.8,0.13711173]
[1762150351888,0.25461599,3720.8,3719.8,0.13711173]
[1762150352184,2.01105896,3720.9,3719.8,0.13711173]
[1762150352384,0.25461949,3720.8,3719.8,0.13711173]
[1762150352584,2.01105896,3720.9,3719.8,0.13711173]
[1762150352881,9.854,3720.8,3719.8,0.13711173]
[1762150353279,0.48393,3719.9,3719.8,0.35721173]
[1762150354684,0.48393,3719.9,3719.8,0.13711173]
[1762150355783,0.48393,3719.9,3719.8,0.35721173]
[1762150355983,13.49928493,3721.8,3719.8,0.35721173]
[1762150355984,2.01105896,3721.1,3719.8,0.35721173]
[1762150356185,9.835,3721.0,3719.8,0.35721173]
[1762150356582,2.01105896,3721.1,3719.8,0.35721173]
[1762150356788,9.832,3721.0,3720.6,0.1367]
[1762150357084,2.01105896,3721.4,3720.6,0.1367]
[1762150357289,9.832,3721.1,3720.6,0.1367]
[1762150357484,2.01105896,3721.4,3721.2,0.1367]
[1762150357682,2.01390246,3722.0,3721.2,0.1367]
[1762150357880,10.0857533,3721.9,3721.2,0.1367]
[1762150358188,9.831,3721.9,3721.6,0.02620524]
[1762150358386,2.01390246,3722.0,3721.8,0.1367]
[1762150358589,7.752,3721.9,3721.8,0.1367]
[1762150359083,7.752,3721.9,3721.8,0.17841666]
[1762150359791,2.01390246,3722.0,3721.8,0.17841666]
[1762150359985,2.01390246,3722.0,3721.9,0.04171666]
[1762150360387,0.0028435,3722.0,3721.9,0.04171666]
[1762150360892,0.0028435,3722.0,3721.9,0.26181666]
[1762150361587,0.0028435,3722.0,3721.9,0.04171666]
[1762150361791,0.0028435,3722.0,3721.8,0.1367]
[1762150361987,1.20926,3721.7,3721.2,0.1367]
[1762150362193,0.48375,3721.3,3721.2,0.1367]
[1762150362692,0.48375,3721.3,3721.2,0.3568]
[1762150362887,0.48375,3721.3,3721.2,0.1367]
[1762150364296,0.48375,3721.3,3721.2,0.3568]
[1762150364895,0.0028435,3722.0,3721.8,0.1367]
[1762150365589,0.0028435,3722.0,3721.9,0.0213003]
[1762150365991,0.0028435,3722.0,3721.9,0.03194712]
[1762150366396,1.8147936,3722.0,3721.9,0.03679202]
[1762150366794,2.08765254,3722.0,3721.9,0.03679202]
[1762150367092,2.08765254,3722.0,3721.2,0.1367]
[1762150367293,1.8119501,3721.3,3720.6,0.1367]
[1762150367595,1.8119501,3720.7,3720.6,0.1367]
[1762150368194,1.8119501,3720.7,3720.0,0.1367]
[1762150368899,1.8119501,3721.2,3720.6,0.377]
[1762150369595,1.723,3721.6,3720.6,0.377]
[1762150369802,1.8119501,3721.8,3721.2,0.1412]
[1762150372298,0.0028435,3722.0,3721.8,0.1412]
[1762150372495,0.0020435,3722.0,3721.8,0.1412]
[1762150372692,0.0020435,3722.0,3721.9,0.02134524]
[1762150373098,0.0020435,3722.0,3721.9,0.03201786]
[1762150373499,0.0020435,3722.0,3721.9,0.03678536]
[1762150376107,0.0020435,3722.0,3721.9,0.27258536]
[1762150377597,0.0020435,3722.0,3721.9,0.03678536]
[1762150378303,0.0020435,3722.0,3721.9,0.27258536]
[1762150379402,0.0020435,3722.0,3721.9,0.2358]
[1762150379705,0.0020435,3722.0,3721.9,0.28325223]
[1762150379905,0.0020435,3722.0,3721.9,0.2939191]
[1762150380297,0.0020435,3722.0,3721.9,0.30456737]
[1762150380805,4.35e-05,3722.0,3721.9,0.30456737]
[1762150381102,4.35e-05,3722.0,3721.9,0.30937072]
[1762150384907,4.35e-05,3722.0,3721.9,0.07357072]
[1762150385202,4.35e-05,3722.0,3721.3,3.575]
[1762150385407,1.8119501,3721.4,3721.3,3.575]
[1762150385802,1.8119501,3721.4,3721.3,3.8108]
[1762150386399,1.8119501,3721.9,3721.8,0.1412]
[1762150386607,2.08535876,3721.9,3721.8,0.38764972]
[1762150386808,2.20575876,3721.9,3721.8,0.15184972]
[1762150387110,10.08535876,3721.9,3721.2,0.1412]
[1762150387300,1.9323501,3721.3,3720.6,0.1412]
[1762150387608,1.92170038,3720.7,3720.0,0.1367]
[1762150387809,0.27340866,3720.6,3720.0,0.1367]
[1762150388809,1.8119501,3720.2,3720.0,0.1367]
[1762150389505,0.1204,3720.1,3719.4,0.1412]
[1762150389713,0.1204,3719.9,3719.4,0.1412]
[1762150389904,0.39351917,3719.9,3719.4,0.1412]
[1762150390209,1.8119501,3720.4,3720.3,0.2358]
[1762150390511,1.8119501,3720.9,3720.3,0.2358]
[1762150390712,0.2729698,3720.8,3720.3,0.2358]
[1762150390916,0.2729698,3720.7,3720.6,0.1412]
[1762150392509,1.40710493,3721.8,3720.6,0.1412]
[1762150392510,1.8119501,3721.4,3720.6,0.377]
[1762150392714,0.27278718,3721.3,3720.6,0.377]
[1762150393013,1.8119501,3720.9,3720.6,0.377]
[1762150393423,1.8119501,3720.9,3720.7,0.01549534]
[1762150393717,1.04337564,3720.8,3720.0,0.1412]
[1762150393913,1.8119501,3720.6,3720.0,0.1412]
[1762150394217,0.27269127,3720.5,3720.3,0.01065914]
[1762150394610,0.27269127,3720.5,3720.4,0.01546708]
[1762150395514,1.8119501,3721.1,3720.4,0.01546708]
[1762150395713,1.8119501,3721.1,3720.0,0.1412]
[1762150395714,0.27257935,3721.0,3720.7,0.01546708]
[1762150395919,0.27257935,3720.9,3720.7,0.01546708]
[1762150396218,0.39133842,3720.8,3720.7,0.01546708]
[1762150396616,0.1188,3720.8,3720.7,0.01546708]
[1762150396815,1.8119501,3721.1,3720.7,0.01546708]
[1762150397020,1.8119501,3721.6,3720.7,0.01546708]
[1762150397212,10.01452106,3721.5,3720.7,0.01546708]
[1762150397518,0.27252106,3721.4,3721.2,0.1425]
[1762150397715,1.8119501,3721.6,3721.3,0.01546708]
[1762150398220,4.35e-05,3722.0,3721.3,0.01546708]
[1762150398919,4.35e-05,3722.0,3721.6,0.01546708]
[1762150399713,1.8119501,3723.1,3721.6,0.01546708]
[1762150399917,1.8119501,3723.1,3722.4,0.1425]
[1762150399918,0.27264085,3723.0,3722.4,0.1425]
[1762150400113,0.27264085,3722.9,3722.4,0.1425]
[1762150400318,1.8119501,3723.1,3722.4,0.1425]
[1762150400512,0.27259142,3723.0,3722.4,0.1425]
[1762150400713,0.27259142,3722.9,3722.4,0.1425]
[1762150400911,0.09263765,3722.5,3721.8,0.1425]
[1762150401523,0.09263765,3722.5,3722.1,0.01069527]
[1762150401823,0.0926,3722.4,3722.3,0.02139054]
[1762150402312,0.0926,3722.4,3722.3,0.02605372]
[1762150402915,9.749,3722.9,3722.4,0.1425]
[1762150403119,0.27247979,3722.8,3722.4,0.1425]
[1762150403317,0.36507979,3722.7,3722.6,0.02605372]
[1762150403524,0.36507979,3722.7,3722.6,0.02907948]
[1762150404226,0.36507979,3722.7,3720.3,3.5189501]
[1762150404227,0.0636,3720.7,3720.0,0.1425]
[1762150404422,1.8119501,3720.4,3720.0,0.1425]
[1762150404821,1.8119501,3721.5,3720.6,0.1425]
[1762150405020,0.27230935,3721.4,3720.6,0.1425]
[1762150405220,1.8119501,3721.5,3720.6,0.14537788]
[1762150405619,8.2329501,3721.5,3720.6,0.14537788]
[1762150406826,1.8119501,3721.5,3720.6,0.14537788]
[1762150407929,1.8119501,3721.5,3721.0,0.0106908]
[1762150408630,11.5979501,3722.0,3721.4,0.2263]
[1762150408833,0.27238481,3721.9,3721.4,0.2263]
[1762150409125,1.8119501,3722.0,3721.4,0.2263]
[1762150410129,1.8119501,3722.0,3721.7,0.0213816]
[1762150410524,0.00273611,3723.0,3721.9,0.2263]
[1762150410721,1.8119501,3722.6,3721.8,0.1352]
[1762150410924,1.8119501,3722.0,3721.8,0.1352]
[1762150411227,1.8119501,3722.0,3721.9,0.0213816]
[1762150412428,1.8772501,3722.0,3721.9,0.0213816]
[1762150413626,1.8119501,3722.3,3721.9,0.0213816]
[1762150414022,0.00273611,3723.0,3722.2,0.2263]
[1762150414228,1.8119501,3722.7,3722.1,0.0213816]
[1762150415130,1.8119501,3722.7,3722.4,0.0213816]
[1762150415336,0.0653,3722.5,3722.4,0.0213816]
[1762150416421,1.8119501,3722.7,3722.4,0.1565816]
[1762150417030,0.0653,3722.5,3722.4,0.0213816]
[1762150417935,14.7813,3722.5,3722.4,0.0213816]
[1762150418135,14.7813,3722.5,3721.2,0.1352]
[1762150418136,1.8119501,3721.7,3721.2,0.1352]
[1762150418334,0.2725184,3721.6,3721.2,0.1352]
[1762150418634,0.27247756,3721.5,3721.2,0.1352]
[1762150418836,1.8119501,3721.7,3721.2,0.1352]
[1762150419033,0.27247914,3721.6,3721.2,0.1352]
[1762150419236,0.27247914,3721.5,3721.2,0.1352]
[1762150419436,1.8119501,3721.7,3721.2,0.1352]
[1762150420228,0.0439,3721.3,3720.0,0.1352]
[1762150420438,1.8119501,3721.2,3720.0,0.1352]
[1762150421034,1.8119501,3721.2,3720.0,0.61911]
[1762150421334,1.8119501,3721.2,3720.2,0.48389]
[1762150421539,1.8119501,3721.7,3721.2,0.1352]
[1762150421735,0.2816539,3721.6,3721.2,0.1352]
[1762150421933,0.2816539,3721.5,3721.2,0.1352]
[1762150422231,1.8119501,3721.7,3721.3,0.2263]
[1762150423332,0.0439,3721.3,3721.2,0.1352]
[1762150423538,0.0439,3721.3,3720.4,3.575]
[1762150423738,1.8119501,3721.2,3720.4,3.575]
[1762150424134,1.8119501,3721.2,3720.0,0.1352]
[1762150424332,1.8119501,3720.7,3720.0,0.1352]
[1762150424938,1.8558501,3720.7,3720.0,0.1352]
[1762150425129,1.8558501,3720.7,3720.6,0.00287788]
[1762150425336,0.0439,3720.1,3719.4,0.1352]
[1762150425534,1.8558501,3720.1,3719.4,0.1352]
[1762150426134,0.28154761,3720.0,3719.4,0.1352]
[1762150426334,0.28154761,3719.9,3719.4,0.1377389]
[1762150426529,0.00200234,3720.0,3719.4,0.1377389]
[1762150426744,0.00200234,3720.0,3719.9,0.2356]
[1762150426934,0.00200234,3720.0,3719.4,0.1377389]
[1762150431146,0.00200234,3720.0,3719.9,0.2356]
[1762150431746,0.00200234,3720.0,3719.4,0.1377389]
[1762150435552,0.0411,3719.5,3719.4,0.0025389]
[1762150435943,0.0411,3719.5,3719.4,0.1335389]
[1762150436851,2.00914045,3719.9,3719.4,0.1335389]
[1762150439851,0.0411,3719.5,3719.4,0.0025389]
[1762150440250,14.7627,3719.5,3719.4,3.89e-05]
[1762150440450,17.01124966,3719.5,3718.5,0.131]
[1762150440753,10.02150921,3719.4,3718.5,0.131]
[1762150440953,0.28050921,3719.3,3718.5,0.131]
[1762150441351,0.28050921,3719.3,3718.5,0.13376255]
[1762150441848,1.214,3719.5,3718.5,0.13376255]
[1762150442045,2.00914045,3719.6,3719.4,0.131]
[1762150442649,0.00200234,3720.0,3719.4,0.131]
[1762150443053,0.00200234,3720.0,3719.9,0.2356]
[1762150443753,2.00914045,3721.5,3720.0,0.131]
[1762150443946,0.76679589,3721.4,3720.0,0.131]
[1762150444148,0.28085778,3721.3,3720.0,0.131]
[1762150444342,4.29314045,3721.5,3720.0,0.131]
[1762150444545,2.00914045,3720.9,3720.0,0.131]
[1762150444745,0.28088446,3720.8,3720.0,0.131]
[1762150444957,0.28088446,3720.7,3720.0,0.131]
[1762150445253,0.28093775,3720.6,3720.0,0.131]
[1762150445458,2.01112112,3720.9,3720.0,0.131]
[1762150445645,0.28092415,3720.8,3720.0,0.131]
[1762150445851,0.28092415,3720.7,3720.0,0.131]
[1762150446053,0.28092415,3720.6,3720.0,0.131]
[1762150446350,0.28092415,3720.5,3720.0,0.131]
[1762150446548,2.01112112,3720.9,3720.0,0.131]
[1762150446855,0.94882298,3720.8,3720.0,0.131]
[1762150447048,0.28111386,3720.7,3720.0,0.131]
[1762150447252,0.28111386,3720.6,3720.0,0.131]
[1762150447451,0.28111386,3720.5,3720.0,0.131]
[1762150447653,0.28111386,3720.4,3720.0,0.131]
[1762150447844,0.28111386,3720.3,3720.0,0.131]
[1762150448051,2.01112112,3720.9,3720.0,0.131]
[1762150448252,0.281365,3720.8,3720.0,0.131]
[1762150448452,6.48512112,3720.9,3720.0,0.131]
[1762150448453,0.281365,3720.7,3720.6,0.131]
[1762150449159,0.281365,3720.8,3720.6,0.131]
[1762150449351,0.281365,3720.7,3720.6,0.131]
[1762150449546,0.281365,3720.8,3720.6,0.131]
[1762150449861,0.281365,3720.7,3720.6,0.131]
[1762150450048,0.281365,3720.8,3720.6,0.131]
[1762150450255,0.0385,3720.1,3719.4,0.131]
[1762150450560,0.28153919,3720.0,3719.4,0.131]
[1762150450758,0.27956942,3719.9,3719.4,0.131]
[1762150450959,2.04764045,3719.5,3718.8,0.131]
[1762150451256,0.27958206,3719.4,3718.8,0.131]
[1762150451559,2.00914045,3719.5,3718.8,0.131]
[1762150451858,10.95914045,3719.9,3719.4,0.131]
[1762150452054,0.94853047,3719.8,3719.4,0.131]
[1762150452252,0.27958767,3719.7,3719.4,0.131]
[1762150452553,0.27958767,3719.6,3719.4,0.131]
[1762150452865,9.737,3720.1,3719.4,0.3666]
[1762150453161,9.734,3720.2,3720.0,0.131]
[1762150453461,0.94933688,3720.1,3720.0,0.131]
[1762150453657,0.98783688,3720.1,3719.4,0.131]
[1762150453856,0.27982283,3720.0,3719.4,0.131]
[1762150454053,0.27982283,3719.9,3719.4,0.131]
[1762150454258,0.27982283,3719.8,3719.4,0.131]
[1762150454452,2.00914045,3720.5,3719.6,0.2356]
[1762150454453,0.27982283,3719.7,3719.6,0.2356]
[1762150454960,0.27982283,3720.2,3719.6,0.2356]
[1762150455160,0.94986912,3720.1,3720.0,0.1387]
[1762150455359,0.94986912,3720.1,3720.0,0.3609]
[1762150456258,0.27982283,3720.1,3720.0,0.3609]
[1762150456758,0.27982283,3720.8,3720.0,0.3609]
[1762150457062,0.95012863,3720.7,3720.0,0.3609]
[1762150457368,0.0385,3720.1,3719.4,0.131]
[1762150457660,0.27982283,3720.0,3719.4,0.131]
[1762150457860,0.27982283,3719.9,3719.4,0.131]
[1762150458156,2.00914045,3720.5,3720.4,0.2222]
[1762150458357,0.95045224,3720.5,3720.4,0.2222]
[1762150459156,0.28014678,3720.5,3720.4,0.2222]
[1762150460967,0.28014678,3720.5,3720.0,0.1387]
[1762150461276,0.00198067,3720.9,3720.0,0.1387]
[1762150461563,0.9500115,3720.8,3720.0,0.1387]
[1762150461757,0.28000938,3720.7,3720.0,0.1387]
[1762150461957,0.28000938,3720.6,3720.0,0.1387]
[1762150462158,0.00198067,3720.9,3720.0,0.1387]
[1762150462355,0.27999865,3720.8,3720.0,0.1387]
[1762150462560,0.00198067,3720.9,3720.8,0.2222]
[1762150465863,0.00198067,3720.9,3720.6,0.1387]
[1762150466668,0.00198067,3720.9,3720.8,0.2402]
[1762150475767,0.00198067,3720.9,3720.6,0.1387]
[1762150476677,0.00198067,3720.9,3720.8,0.2402]
[1762150478472,0.00198067,3720.9,3720.6,0.1387]
[1762150479076,0.00198067,3720.9,3720.8,0.2402]
[1762150485568,0.27913137,3720.9,3720.8,0.2402]
[1762150487275,0.27913137,3720.9,3720.8,0.2387]
[1762150489980,0.27913137,3720.9,3720.6,0.1387]
[1762150490180,0.2771507,3720.8,3720.7,0.2387]
[1762150491381,0.2771507,3720.8,3720.6,0.1387]
[1762150491578,0.2771507,3720.8,3720.7,0.2387]
[1762150502182,0.1773,3720.1,3720.0,0.1387]
[1762150502479,2.0139346,3720.1,3719.0,0.1323]
[1762150502685,1.16698027,3719.5,3719.4,0.3697]
[1762150502889,1.44470075,3719.5,3719.4,0.3697]
[1762150503076,1.16698027,3719.5,3719.4,0.3697]
[1762150503280,1.16698027,3719.5,3719.4,0.131]
[1762150503592,1.62170194,3719.5,3719.4,0.131]
[1762150503985,2.78868221,3719.5,3719.4,0.131]
[1762150504283,0.45472167,3719.5,3719.4,0.131]
[1762150504481,2.26924846,3719.5,3719.4,0.131]
[1762150504892,2.26924846,3719.5,3719.0,0.1323]
[1762150505188,0.27742167,3719.4,3719.0,0.1323]
[1762150505384,1.81452679,3719.5,3719.0,0.1323]
[1762150505586,0.27682406,3719.4,3719.0,0.1323]
[1762150505780,0.1773,3719.1,3718.5,0.00276255]
[1762150506088,1.99182679,3718.6,3718.5,0.00276255]
[1762150506590,0.21548086,3719.6,3718.5,0.38086255]
[1762150506880,7.79772098,3721.0,3718.5,0.38086255]
[1762150506881,1.40710493,3720.6,3719.4,0.2387]
[1762150507087,0.27650721,3720.4,3720.3,0.2387]
[1762150507285,0.00198067,3720.9,3720.5,0.1394]
[1762150507582,0.00198067,3720.9,3720.8,0.2387]
[1762150507788,0.00198067,3720.9,3720.5,0.1394]
[1762150508187,0.00198067,3720.9,3720.8,0.2387]
[1762150508986,1.81452679,3722.8,3722.0,0.1394]
[1762150509185,1.81452679,3722.3,3722.0,0.1394]
[1762150509491,0.27651532,3722.2,3722.0,0.1394]
[1762150509680,1.81452679,3722.3,3722.0,0.1394]
[1762150509885,0.27651535,3722.2,3722.0,0.14184296]
[1762150510094,0.00210911,3722.3,3722.2,0.2387]
[1762150510891,1.81452679,3723.3,3722.2,0.2387]
[1762150511087,0.2720084,3723.2,3722.2,0.2387]
[1762150511293,1.81452679,3723.3,3723.0,0.1394]
[1762150511595,1.81452679,3723.3,3722.4,0.1394]
[1762150511596,0.1773,3723.1,3722.4,0.1394]
[1762150511794,1.81452679,3722.8,3722.4,0.1394]
[1762150511991,1.81452679,3722.8,3722.0,0.14184296]
[1762150512188,0.1388,3723.0,3722.0,0.14184296]
[1762150512385,1.81452679,3722.4,3722.0,0.14184296]
[1762150513193,1.81740557,3723.1,3722.4,0.1394]
[1762150513387,1.81452679,3722.6,3722.4,0.1394]
[1762150513587,0.1773,3722.5,3722.0,0.14184296]
[1762150513783,1.81452679,3722.6,3722.4,0.1394]
[1762150513993,0.1773,3722.5,3722.0,0.14184296]
[1762150514189,1.81452679,3722.9,3722.4,0.1394]
[1762150515095,0.27158262,3722.8,3722.4,0.1394]
[1762150515297,1.81452679,3722.9,3722.4,0.1394]
[1762150515589,0.27153718,3722.8,3722.4,0.1394]
[1762150515791,1.81452679,3722.9,3722.4,0.1394]
[1762150516299,0.27149318,3722.8,3722.4,0.1394]
[1762150516493,1.81452679,3722.9,3722.4,0.1394]
[1762150516790,0.2715004,3722.8,3722.4,0.1394]
[1762150517094,1.81452679,3722.9,3722.4,0.1394]
[1762150517296,0.27144247,3722.8,3722.4,0.1394]
[1762150517481,0.1773,3722.5,3722.4,0.1394]
[1762150518593,1.81452679,3722.9,3722.4,0.1394]
[1762150518790,1.81740557,3723.1,3723.0,0.1439]
[1762150519891,0.00287878,3723.1,3723.0,0.1439]
[1762150520099,1.81740557,3723.1,3723.0,0.1439]
[1762150521296,0.00287878,3723.1,3723.0,0.3762]
[1762150522391,1.81740557,3723.1,3723.0,0.3762]
[1762150522590,1.81740557,3723.1,3723.0,0.1439]
[1762150522993,1.81740557,3723.1,3723.0,0.3762]
[1762150524595,1.81740557,3723.1,3723.0,0.1439]
[1762150525201,0.00287878,3723.1,3723.0,0.3762]
[1762150530502,0.18007878,3723.1,3722.4,0.1394]
[1762150530704,1.81452679,3722.5,3722.4,0.1394]
[1762150531098,1.81452679,3723.0,3722.4,0.3576]
[1762150531398,1.81452679,3723.0,3722.9,0.2182]
[1762150531801,1.81452679,3723.0,3722.4,0.1394]
[1762150532501,1.81452679,3722.5,3722.4,0.1394]
[1762150533399,1.99172679,3722.5,3722.1,3.575]
[1762150533595,1.99172679,3722.5,3722.0,0.14184296]
[1762150535099,0.00287878,3723.1,3722.5,0.1323]
[1762150535297,0.27163666,3723.0,3722.5,0.1323]
[1762150535606,0.27163265,3722.9,3722.5,0.1323]
[1762150535807,0.00287878,3723.1,3722.5,0.1323]
[1762150535998,0.00287878,3723.1,3723.0,0.3505]
[1762150536197,0.67313932,3723.1,3723.0,0.3505]
[1762150536401,0.27513206,3723.1,3723.0,0.3505]
[1762150537005,0.27513206,3723.1,3723.0,0.1323]
[1762150537206,0.9463191,3723.1,3723.0,0.1323]
[1762150539103,0.9463191,3723.1,3722.5,0.1323]
[1762150539104,1.1235191,3723.1,3722.5,0.1323]
[1762150539308,1.81452679,3722.7,3722.5,0.1323]
[1762150539509,0.94344032,3722.6,3722.5,0.3505]
[1762150540410,1.12064032,3722.6,3722.0,0.14184296]
[1762150540708,0.94412833,3722.5,3722.0,0.14184296]
[1762150541012,0.27225328,3722.4,3722.3,0.2182]
[1762150542312,0.27225328,3722.4,3722.0,0.14184296]
[1762150542613,1.81452679,3722.8,3722.5,0.1323]
[1762150542813,0.93758978,3722.7,3722.6,0.2182]
[1762150543310,0.26568091,3722.7,3722.6,0.2182]
[1762150544408,0.00287878,3723.1,3722.6,0.2182]
[1762150544602,0.00287878,3723.1,3723.0,0.3505]
[1762150544802,0.67501534,3723.1,3723.0,0.3505]
[1762150545012,1.11769593,3723.1,3723.0,0.1323]
[1762150545613,0.94079593,3723.1,3723.0,0.1323]
[1762150546409,0.94079593,3723.1,3723.0,0.3608]
[1762150547510,0.00287878,3723.1,3723.0,0.3608]
[1762150557423,0.00287878,3723.1,3723.0,0.1323]
[1762150557613,0.00287878,3723.1,3723.0,0.3608]
[1762150559117,0.1798,3724.1,3724.0,0.1403]
[1762150559419,0.85169769,3724.1,3724.0,0.1403]
[1762150559621,1.11723061,3724.1,3724.0,0.1403]
[1762150560020,1.12042392,3724.1,3724.0,0.1403]
[1762150560208,0.94062392,3724.1,3724.0,0.1403]
[1762150560519,0.94062392,3724.1,3724.0,0.3688]
[1762150561615,0.00319331,3724.1,3724.0,0.3688]
[1762150563020,0.18299331,3724.1,3724.0,0.3688]
[1762150563627,0.00319331,3724.1,3724.0,0.3688]
[1762150564320,0.18299331,3724.1,3724.0,0.1403]
[1762150564524,1.11967396,3724.1,3723.5,0.1403]
[1762150564820,2.00532965,3723.9,3723.8,0.2285]
[1762150565025,2.9420103,3723.9,3723.8,0.2285]
[1762150565228,2.27068998,3723.9,3723.8,0.2285]
[1762150568429,2.27068998,3723.9,3723.0,0.1323]
[1762150568430,0.1798,3723.1,3723.0,0.1323]
[1762150568725,10.94234899,3723.9,3723.0,0.1323]
[1762150568726,2.00532965,3723.9,3723.0,0.1323]
[1762150568926,2.00532965,3723.3,3723.0,0.1323]
[1762150569227,0.1798,3723.1,3722.5,0.1323]
[1762150569618,2.00532965,3723.3,3723.0,0.1403]
[1762150569818,0.2654393,3723.2,3723.1,0.2285]
[1762150570026,2.00532965,3724.0,3723.1,0.2285]
[1762150570231,0.93731825,3723.9,3723.5,0.1403]
[1762150570428,0.93731825,3723.8,3723.7,0.2285]
[1762150570622,0.00319331,3724.1,3724.0,0.3688]
[1762150571023,0.26881681,3724.1,3724.0,0.3688]
[1762150571524,0.00319331,3724.1,3724.0,0.3688]
[1762150571726,0.26881681,3724.1,3724.0,0.3688]
[1762150572032,0.00319331,3724.1,3724.0,0.3688]
[1762150576932,0.025,3724.7,3724.6,0.2394]
[1762150577936,0.02848744,3724.7,3724.6,0.2394]
[1762150578230,2.00532965,3726.1,3725.5,0.1342]
[1762150578435,10.51758746,3726.0,3725.5,0.1342]
[1762150578633,0.94358746,3725.9,3725.5,0.1342]
[1762150578830,0.94358746,3725.8,3725.5,0.1342]
[1762150579026,0.27218797,3725.7,3725.6,0.2394]
[1762150579226,0.1832,3725.6,3725.5,0.13617569]
[1762150579433,0.00262677,3725.8,3725.5,0.37557569]
[1762150579626,0.00262677,3725.8,3725.7,0.2394]
[1762150579930,0.1832,3725.6,3725.5,0.13617569]
[1762150580126,0.1832,3725.6,3725.5,0.00197569]
[1762150580331,0.45524354,3725.6,3725.5,0.00197569]
[1762150581737,0.1832,3725.1,3725.0,0.1342]
[1762150581932,0.45524354,3725.1,3725.0,0.1342]
[1762150582628,0.45524354,3725.1,3725.0,0.13660646]
[1762150583638,0.00262677,3725.8,3725.0,0.37600646]
[1762150583832,0.00262677,3725.8,3725.7,0.2394]
[1762150585438,0.1832,3725.6,3725.0,0.13660646]
[1762150585840,0.1832,3725.6,3725.5,0.1342]
[1762150586041,0.45485518,3725.6,3725.5,0.1342]
[1762150586743,0.45485518,3725.6,3725.0,0.13660646]
[1762150586942,0.1832,3725.6,3725.0,0.13660646]
[1762150588749,0.27141106,3725.5,3725.0,0.13660646]
[1762150588936,8.219,3725.6,3725.0,0.13660646]
[1762150589138,0.27140424,3725.5,3725.4,0.2383]
[1762150589344,6.02962677,3725.8,3725.5,0.1346]
[1762150589645,0.27144155,3725.7,3725.5,0.1346]
[1762150589839,6.02962677,3725.8,3725.5,0.1346]
[1762150590037,0.27143929,3725.7,3725.5,0.1346]
[1762150590249,0.27143385,3725.6,3725.5,0.1346]
[1762150590443,2.4596635,3725.6,3725.5,0.1346]
[1762150590648,2.4596635,3725.6,3725.0,0.13660646]
[1762150590847,0.2714199,3725.5,3725.0,0.13660646]
[1762150591052,2.00532965,3725.6,3725.5,0.1346]
[1762150591350,2.27676757,3725.6,3725.5,0.1346]
[1762150591550,2.00532965,3725.6,3725.5,0.3729]
[1762150593154,0.00262677,3725.8,3725.7,0.2383]
[1762150593353,0.27404971,3725.8,3725.7,0.2383]
[1762150593554,0.00262677,3725.8,3725.7,0.2383]
[1762150594051,0.00262677,3725.8,3725.5,0.1346]
[1762150595454,0.1829,3725.6,3725.5,0.1346]
[1762150595947,0.4543766,3725.6,3725.5,0.1346]
[1762150596155,0.4543766,3725.6,3725.0,0.13660646]
[1762150596349,0.1829,3725.1,3725.0,0.13660646]
[1762150599059,0.1829,3725.1,3725.0,0.00240646]
[1762150599259,1.12538436,3725.1,3725.0,0.00240646]
[1762150600561,10.69238436,3725.1,3725.0,0.00240646]
[1762150600761,10.69138436,3725.1,3725.0,0.00240646]
[1762150602657,10.69138436,3725.1,3725.0,0.13700646]
[1762150603157,10.41951698,3725.1,3725.0,0.13700646]
[1762150603363,10.68447649,3725.1,3725.0,0.13700646]
[1762150604761,1.11847649,3725.1,3725.0,0.00240646]
[1762150604965,10.68447649,3725.1,3725.0,0.00240646]
[1762150606269,1.11847649,3725.1,3725.0,0.35970646]
[1762150606566,0.93557649,3725.1,3725.0,0.35970646]
[1762150606764,10.50157649,3725.1,3725.0,0.35970646]
[1762150606965,0.93557649,3725.1,3725.0,0.35970646]
[1762150607359,0.26495951,3725.1,3725.0,0.35970646]
[1762150607960,9.82995951,3725.1,3725.0,0.35970646]
[1762150608772,10.68347191,3725.1,3725.0,0.00240646]
[1762150609866,0.93667191,3725.1,3724.0,0.1403]
[1762150610070,0.93667191,3725.0,3724.0,0.1403]
[1762150610265,5.74167191,3724.9,3724.0,0.1403]
[1762150610571,0.26495951,3724.8,3724.7,0.2251]
[1762150610765,9.82995951,3724.8,3724.7,0.22706675]
[1762150610967,0.26495951,3724.8,3724.7,0.22706675]
[1762150611172,2.00532965,3725.2,3725.0,0.1322]
[1762150611374,7.45754733,3725.1,3725.0,0.1322]
[1762150611872,0.93654733,3725.1,3725.0,0.3573]
[1762150612271,2.00532965,3725.2,3725.1,0.2251]
[1762150612474,11.83433716,3725.2,3725.1,0.2251]
[1762150612865,2.27033716,3725.2,3725.1,0.2251]
[1762150613071,11.83433716,3725.2,3725.1,0.2251]
[1762150613871,0.26500751,3725.2,3725.1,0.2251]
[1762150614075,2.00795642,3725.8,3725.5,0.1322]
[1762150614260,10.50068724,3725.7,3725.6,0.2251]
[1762150614466,0.93668724,3725.7,3725.6,0.2251]
[1762150614867,0.00262677,3725.8,3725.7,0.2251]
[1762150615169,0.26769528,3725.8,3725.7,0.2251]
[1762150615666,0.44699528,3725.8,3725.5,0.1322]
[1762150615861,0.44699528,3725.8,3725.0,0.1322]
[1762150615862,0.1793,3725.6,3725.0,0.1322]
[1762150616061,1.80812719,3725.2,3725.0,0.1322]
[1762150616265,11.37112719,3725.2,3725.0,0.1322]
[1762150616466,11.37112719,3725.2,3725.1,0.2251]
[1762150616672,11.81539004,3725.2,3725.0,0.1322]
[1762150616871,11.55042719,3725.2,3725.0,0.1322]
[1762150617267,0.1793,3725.1,3725.0,0.1322]
[1762150619074,1.11439447,3725.1,3725.0,0.1322]
[1762150620975,1.11439447,3725.1,3724.7,0.00196675]
[1762150620976,0.1793,3724.8,3724.7,0.00196675]
[1762150621166,0.44424534,3724.8,3724.7,0.00196675]
[1762150622570,1.11453382,3724.8,3724.7,0.00196675]